fUSD/lending_fUSD_20250507
["ID","MTS","AMOUNT","RATE_DAILY","PERIOD"]
[360246394,1746658253823,-946.67,0.00019999,2]
[360246395,1746658253833,-946.67,0.00019999,2]
[360246396,1746658253842,-946.67,0.00019999,2]
[360246397,1746658253852,-946.67,0.00019999,2]
[360246398,1746658253862,-946.89581716,0.00019999,2]
[360246399,1746658253872,-450.0,0.00019999,2]
[360246400,1746658253882,-450.0,0.00019999,2]
[360246401,1746658253892,-450.0,0.00019999,2]
[360246402,1746658253903,-450.0,0.00019999,2]
[360246403,1746658253913,-450.0,0.00019999,2]
[360246404,1746658253923,-450.0,0.00019999,2]
[360246405,1746658253933,-450.0,0.00019999,2]
[360246406,1746658253943,-575.69,0.00019999,2]
[360246407,1746658253952,-123753.71510977,0.0002,2]
[360246408,1746658254223,-2004.69697155,0.0002,2]
[360246409,1746658254369,-450.0,0.00019995,2]
[360246410,1746658254379,-450.0,0.00019995,2]
[360246411,1746658254388,-450.0,0.00019997,2]
[360246412,1746658254398,-450.0,0.00019997,2]
[360246413,1746658254407,-581.62,0.00019998,2]
[360246414,1746658254419,-450.0,0.00019998,2]
[360246415,1746658254430,-1416.77147517,0.0002,2]
[360246416,1746658254442,-29428.86218682,0.0002,2]
[360246417,1746658254454,-8249.9,0.0002,2]
[360246418,1746658254470,-450.0,0.00019998,2]
[360246419,1746658254480,-4033.602,0.0002,2]
[360246420,1746658254496,-860.57703411,0.0002,2]
[360246421,1746658254508,-1890.1,0.0002,2]
[360246422,1746658254520,-588.748,0.0002,2]
[360246423,1746658254531,-1273.0,0.0002,2]
[360246424,1746658254543,-657.27927126,0.0002,2]
[360246425,1746658254556,-630.820596,0.0002,2]
[360246426,1746658254568,-373021.0135556,0.0002,2]
[360246427,1746658295868,222.447414,0.00018796,2]
[360246428,1746658405472,500.0,0.00019218,2]
[360246430,1746658692764,150.0,0.0003,30]
[360246431,1746658750935,1000.0,0.00018893,2]
[360246432,1746658812660,150.0,0.0003,30]
[360246433,1746658813599,150.0,0.0003,30]
[360246434,1746658817823,10000.0,0.00030137,120]
[360246435,1746658820164,150.0,0.0003,30]
[360246436,1746658820941,150.0,0.0003,30]
[360246437,1746658853785,156.13,0.00018856,2]
[360246438,1746658885157,62.19741301,0.00018861,2]
[360246439,1746658885181,120.82258699,0.00018861,2]
[360246440,1746658885942,183.02,0.00025934,120]
[360246441,1746658886160,183.02,0.00028292,120]
[360246442,1746658932185,150.0,0.00019501,2]
[360246444,1746659042489,3314.52008988,0.0003,120]
[360246445,1746659058521,150.0,0.0003,30]
[360246446,1746659060030,150.0,0.0003,30]
[360246447,1746659067137,150.0,0.0003,30]
[360246448,1746659104707,9005.55,0.00019,2]
[360246449,1746659105799,150.0,0.0003,30]
[360246450,1746659107047,150.0,0.0003,30]
[360246451,1746659109787,150.0,0.0003,30]
[360246452,1746659110823,150.0,0.0003,30]
[360246453,1746659111696,150.0,0.0003,30]
[360246454,1746659114639,150.0,0.0003,30]
[360246455,1746659150336,150.0,0.00017975,2]
[360246456,1746659150394,150.0,0.00018075,2]
[360246457,1746659150468,150.0,0.00018175,2]
[360246458,1746659150535,150.0,0.00018275,2]
[360246459,1746659150603,123.62741301,0.00018375,2]
[360246460,1746659150624,26.37258699,0.00018375,2]
[360246461,1746659150742,150.0,0.00018575,2]
[360246462,1746659150816,150.0,0.00018674,2]
[360246463,1746659150886,150.0,0.00018475,2]
[360246464,1746659150940,150.0,0.00018774,2]
[360246465,1746659151011,150.0,0.00018874,2]
[360246466,1746659151080,150.0,0.00018974,2]
[360246467,1746659151159,150.0,0.00019074,2]
[360246468,1746659151226,150.0,0.00019174,2]
[360246469,1746659151299,150.0,0.00019274,4]
[360246470,1746659151363,150.0,0.00019373,4]
[360246471,1746659151431,150.0,0.00019473,4]
[360246472,1746659285839,200.0,0.0003,30]
[360246473,1746659286399,150.0,0.00018986,7]
[360246474,1746659346031,150.0,0.0003,30]
[360246475,1746659348679,150.0,0.0003,30]
[360246476,1746659361653,150.0,0.00019501,2]
[360246477,1746659385467,354.87141378,0.000195,2]
[360246481,1746659410749,200.0,0.0003,30]
[360246482,1746659424176,322.11,0.00016839,2]
[360246483,1746659424401,322.11,0.00019103,2]
[360246490,1746659431523,-150.0,0.00019573,4]
[360246492,1746659431534,-250.0,0.00019598,2]
[360246493,1746659431544,-200.0,0.00019623,2]
[360246494,1746659431554,-250.0,0.00019645,2]
[360246495,1746659431565,-200.0,0.00019667,2]
[360246496,1746659431578,-150.0,0.00019673,4]
[360246497,1746659431588,-246.4819446,0.0001969,2]
[360246498,1746659431638,-803.10443197,0.0001969,2]
[360246499,1746659431649,-1989.61383413,0.0001969,2]
[360246500,1746659431660,-300.0,0.00019697,2]
[360246501,1746659431671,-1200.0,0.00019698,2]
[360246502,1746659431681,-300.0,0.00019698,2]
[360246503,1746659431691,-850.0,0.00019699,2]
[360246504,1746659431701,-4035.71870056,0.00019699,2]
[360246505,1746659431712,-354.81,0.00019699,2]
[360246506,1746659431722,-543.58216721,0.000197,2]
[360246507,1746659431732,-49518.76556128,0.000197,2]
[360246508,1746659431742,-1064.43,0.000197,2]
[360246509,1746659431752,-415.01116444,0.00019705,2]
[360246510,1746659431762,-247.69397793,0.00019711,2]
[360246511,1746659431773,-1989.61383408,0.00019713,2]
[360246512,1746659431783,-4035.71870056,0.00019721,2]
[360246513,1746659431794,-166.38,0.0001973,2]
[360246514,1746659431804,-1989.61383408,0.00019737,2]
[360246515,1746659431817,-207.4,0.00019738,2]
[360246516,1746659431833,-4035.71870056,0.00019744,2]
[360246517,1746659431843,-19364.67546555,0.0001975,2]
[360246518,1746659431854,-694.02,0.00019756,2]
[360246519,1746659431864,-1148.56,0.00019756,2]
[360246520,1746659431874,-999.99,0.00019756,2]
[360246521,1746659431884,-247.69397793,0.00019758,2]
[360246522,1746659431894,-1989.61383408,0.0001976,2]
[360246523,1746659431904,-4035.71870056,0.00019766,2]
[360246524,1746659431914,-168.088,0.00019773,2]
[360246525,1746659431924,-500.0,0.00019773,2]
[360246526,1746659431935,-150.99,0.00019773,2]
[360246527,1746659431949,-884.05,0.00019773,2]
[360246529,1746659431959,-9999.99,0.00019773,2]
[360246532,1746659431969,-215.45125008,0.00019773,2]
[360246533,1746659431980,-506.23778375,0.00019773,2]
[360246535,1746659431991,-500.0,0.00019773,2]
[360246537,1746659432001,-155.46145668,0.00019773,2]
[360246538,1746659432011,-500.0,0.00019773,2]
[360246539,1746659432023,-500.0,0.00019773,2]
[360246540,1746659432033,-500.0,0.00019773,2]
[360246541,1746659432043,-500.0,0.00019773,2]
[360246542,1746659432054,-430.52902541,0.00019773,2]
[360246543,1746659432065,-506.72470226,0.00019773,2]
[360246544,1746659432075,-177.75275273,0.00019773,2]
[360246545,1746659432085,-500.0,0.00019773,2]
[360246546,1746659432097,-157.41835852,0.00019773,2]
[360246547,1746659432107,-163.91535588,0.00019773,2]
[360246548,1746659432117,-506.46470158,0.00019773,2]
[360246549,1746659432127,-502.44539025,0.00019773,2]
[360246550,1746659432137,-207.97776591,0.00019773,2]
[360246551,1746659432148,-500.0,0.00019773,2]
[360246552,1746659432158,-156.46429994,0.00019773,2]
[360246553,1746659432169,-495.25608949,0.00019773,2]
[360246554,1746659432179,-161.1858119,0.00019773,2]
[360246555,1746659432189,-500.0,0.00019773,2]
[360246556,1746659432199,-500.0,0.00019773,2]
[360246557,1746659432210,-500.0,0.00019773,2]
[360246558,1746659432220,-150.0,0.00019773,4]
[360246559,1746659432230,-2240.346,0.00019773,2]
[360246560,1746659432241,-9007.78,0.00019773,2]
[360246561,1746659432252,-4007.67,0.00019773,2]
[360246562,1746659432267,-9999.99,0.00019773,2]
[360246563,1746659432278,-150.99,0.00019773,2]
[360246564,1746659432288,-1989.61383408,0.00019783,2]
[360246565,1746659432298,-700.41,0.00019787,2]
[360246566,1746659432308,-700.41,0.00019787,2]
[360246567,1746659432320,-700.41,0.00019787,2]
[360246568,1746659432330,-700.41,0.00019787,2]
[360246569,1746659432340,-700.41,0.00019787,2]
[360246570,1746659432351,-700.41,0.00019788,2]
[360246571,1746659432361,-700.41,0.00019788,2]
[360246572,1746659432371,-151.0,0.00019788,2]
[360246573,1746659432380,-668.65185757,0.00019788,2]
[360246574,1746659432391,-4035.71870056,0.00019788,2]
[360246575,1746659432401,-700.41,0.00019789,2]
[360246576,1746659432412,-700.41,0.00019789,2]
[360246577,1746659432422,-700.41,0.00019789,2]
[360246578,1746659432433,-1682.9706648,0.0001979,2]
[360246579,1746659432444,-1586.54370739,0.00019797,2]
[360246580,1746659432454,-1586.54370739,0.00019797,2]
[360246581,1746659432465,-1586.54370739,0.00019797,2]
[360246582,1746659432475,-1586.54370739,0.00019797,2]
[360246583,1746659432485,-1586.54370739,0.00019797,2]
[360246584,1746659432495,-1586.54370739,0.00019797,2]
[360246585,1746659432507,-1586.54370739,0.00019797,2]
[360246586,1746659432518,-1586.54370739,0.00019797,2]
[360246587,1746659432528,-1586.54370739,0.00019797,2]
[360246588,1746659432539,-1586.54370739,0.00019797,2]
[360246589,1746659432549,-1586.54370739,0.00019797,2]
[360246590,1746659432559,-1586.54370739,0.00019797,2]
[360246591,1746659432569,-1586.54370739,0.00019797,2]
[360246592,1746659432579,-1586.54370739,0.00019797,2]
[360246593,1746659432589,-1586.54370739,0.00019797,2]
[360246594,1746659432600,-1586.54370739,0.00019797,2]
[360246595,1746659432610,-1586.54370739,0.00019797,2]
[360246596,1746659432621,-1586.54370739,0.00019797,2]
[360246597,1746659432630,-1586.54370739,0.00019797,2]
[360246598,1746659432641,-1586.54370739,0.00019797,2]
[360246599,1746659432651,-1586.54370739,0.00019797,2]
[360246600,1746659432661,-1586.54370739,0.00019797,2]
[360246601,1746659432672,-1586.54370739,0.00019797,2]
[360246602,1746659432682,-1586.54370739,0.00019797,2]
[360246603,1746659432692,-1586.54370739,0.00019797,2]
[360246604,1746659432706,-1586.54370739,0.00019797,2]
[360246605,1746659432717,-1586.54370739,0.00019797,2]
[360246606,1746659432726,-1586.54370739,0.00019797,2]
[360246607,1746659432736,-1586.54370739,0.00019797,2]
[360246608,1746659432746,-1586.54370739,0.00019797,2]
[360246609,1746659432756,-1586.54370739,0.00019797,2]
[360246610,1746659432766,-1586.54370739,0.00019797,2]
[360246611,1746659432776,-1586.54370739,0.00019797,2]
[360246612,1746659432786,-1586.54370739,0.00019797,2]
[360246613,1746659432796,-1586.54370739,0.00019797,2]
[360246614,1746659432806,-1586.54370739,0.00019797,2]
[360246615,1746659432817,-1586.54370739,0.00019797,2]
[360246616,1746659432827,-1586.54370739,0.00019797,2]
[360246617,1746659432838,-1586.54370739,0.00019797,2]
[360246618,1746659432848,-1586.54370739,0.00019797,2]
[360246619,1746659432858,-1586.54370739,0.00019797,2]
[360246620,1746659432868,-1586.54370739,0.00019797,2]
[360246621,1746659432879,-1586.54370739,0.00019797,2]
[360246622,1746659432889,-1586.54370739,0.00019797,2]
[360246623,1746659432899,-1586.54370739,0.00019797,2]
[360246624,1746659432910,-1586.54370739,0.00019797,2]
[360246625,1746659432919,-1586.54370739,0.00019797,2]
[360246626,1746659432929,-1586.54370739,0.00019797,2]
[360246627,1746659432940,-1586.54370739,0.00019797,2]
[360246628,1746659432955,-1586.54370739,0.00019797,2]
[360246629,1746659432965,-1586.54370739,0.00019797,2]
[360246630,1746659432975,-1586.54370739,0.00019797,2]
[360246631,1746659432984,-1586.54370739,0.00019797,2]
[360246632,1746659432994,-1586.54370739,0.00019797,2]
[360246633,1746659433004,-1586.54370739,0.00019797,2]
[360246634,1746659433014,-1586.54370739,0.00019797,2]
[360246635,1746659433024,-1586.54370739,0.00019797,2]
[360246636,1746659433034,-1586.54370739,0.00019797,2]
[360246637,1746659433044,-1586.54370739,0.00019797,2]
[360246638,1746659433053,-1586.54370739,0.00019797,2]
[360246639,1746659433063,-1586.54370739,0.00019797,2]
[360246640,1746659433073,-1586.54370739,0.00019797,2]
[360246641,1746659433083,-1586.54370739,0.00019797,2]
[360246642,1746659433094,-1586.54370739,0.00019797,2]
[360246643,1746659433104,-1586.54370739,0.00019797,2]
[360246644,1746659433113,-1586.54370739,0.00019797,2]
[360246645,1746659433124,-1586.54370739,0.00019797,2]
[360246646,1746659433135,-1546.88011472,0.00019797,2]
[360246647,1746659433145,-1546.88011472,0.00019797,2]
[360246648,1746659433155,-1546.88011472,0.00019797,2]
[360246649,1746659433166,-1546.88011472,0.00019797,2]
[360246650,1746659433176,-1546.88011472,0.00019797,2]
[360246651,1746659433187,-1546.88011472,0.00019797,2]
[360246652,1746659433197,-1546.88011472,0.00019797,2]
[360246653,1746659433207,-1546.88011472,0.00019797,2]
[360246654,1746659433218,-1546.88011472,0.00019797,2]
[360246655,1746659433230,-1546.88011472,0.00019797,2]
[360246656,1746659433240,-1546.88011472,0.00019797,2]
[360246657,1746659433251,-1546.88011472,0.00019797,2]
[360246658,1746659433262,-1546.88011472,0.00019797,2]
[360246659,1746659433273,-1546.88011472,0.00019797,2]
[360246660,1746659433282,-1546.88011472,0.00019797,2]
[360246661,1746659433292,-1546.88011472,0.00019797,2]
[360246662,1746659433302,-1546.88011472,0.00019797,2]
[360246663,1746659433313,-1546.88011472,0.00019797,2]
[360246664,1746659433323,-1546.88011472,0.00019797,2]
[360246665,1746659433334,-1546.88011472,0.00019797,2]
[360246666,1746659433344,-1546.88011472,0.00019797,2]
[360246667,1746659433355,-1546.88011472,0.00019797,2]
[360246668,1746659433365,-1546.88011472,0.00019797,2]
[360246669,1746659433375,-1546.88011472,0.00019797,2]
[360246670,1746659433386,-197.81897051,0.00019798,2]
[360246671,1746659433397,-500.0,0.00019798,2]
[360246672,1746659433407,-500.0,0.00019798,2]
[360246673,1746659433418,-500.0,0.00019798,2]
[360246674,1746659433429,-500.0,0.00019798,2]
[360246675,1746659433440,-336.62051523,0.00019798,2]
[360246676,1746659433450,-500.0,0.00019798,2]
[360246677,1746659433460,-500.0,0.00019798,2]
[360246678,1746659433470,-500.0,0.00019798,2]
[360246679,1746659433481,-500.0,0.00019798,2]
[360246680,1746659433491,-500.0,0.00019798,2]
[360246681,1746659433502,-500.0,0.00019798,2]
[360246682,1746659433512,-500.0,0.00019798,2]
[360246683,1746659433535,-500.0,0.00019798,2]
[360246684,1746659433546,-500.0,0.00019798,2]
[360246685,1746659433557,-500.0,0.00019798,2]
[360246686,1746659433567,-500.0,0.00019798,2]
[360246687,1746659433577,-500.0,0.00019798,2]
[360246688,1746659433588,-500.0,0.00019798,2]
[360246689,1746659433598,-500.0,0.00019798,2]
[360246690,1746659433608,-500.0,0.00019798,2]
[360246691,1746659433619,-500.0,0.00019798,2]
[360246692,1746659433630,-500.0,0.00019798,2]
[360246693,1746659433641,-500.0,0.00019798,2]
[360246694,1746659433652,-500.0,0.00019798,2]
[360246695,1746659433662,-500.0,0.00019798,2]
[360246696,1746659433673,-250.0,0.00019798,2]
[360246697,1746659433684,-500.0,0.00019798,2]
[360246698,1746659433694,-500.0,0.00019798,2]
[360246699,1746659433705,-500.0,0.00019798,2]
[360246700,1746659433717,-500.0,0.00019798,2]
[360246701,1746659433727,-500.0,0.00019798,2]
[360246702,1746659433738,-500.0,0.00019798,2]
[360246703,1746659433749,-500.0,0.00019798,2]
[360246704,1746659433759,-500.0,0.00019798,2]
[360246705,1746659433769,-500.0,0.00019798,2]
[360246706,1746659433779,-500.0,0.00019798,2]
[360246707,1746659433789,-527.5476712,0.00019798,2]
[360246708,1746659433800,-450.0,0.00019798,2]
[360246709,1746659433811,-450.0,0.00019798,2]
[360246710,1746659433821,-450.0,0.00019798,2]
[360246711,1746659433831,-450.0,0.00019798,2]
[360246712,1746659433841,-450.0,0.00019798,2]
[360246713,1746659433852,-450.0,0.00019798,2]
[360246714,1746659433863,-450.0,0.00019798,2]
[360246715,1746659433874,-450.0,0.00019798,2]
[360246716,1746659433884,-1616.35,0.00019798,2]
[360246717,1746659433894,-450.0,0.00019798,2]
[360246718,1746659433905,-587.28,0.00019798,2]
[360246719,1746659433914,-450.0,0.00019798,2]
[360246720,1746659433925,-450.0,0.00019798,2]
[360246721,1746659433935,-1334.64,0.00019798,2]
[360246722,1746659433953,-450.0,0.00019798,2]
[360246723,1746659433963,-412.095677,0.00019798,2]
[360246724,1746659433973,-615.21,0.00019798,2]
[360246725,1746659433983,-663.909676,0.00019798,2]
[360246726,1746659433996,-450.0,0.00019798,2]
[360246727,1746659434006,-450.0,0.00019798,2]
[360246728,1746659434017,-396.777921,0.00019798,2]
[360246729,1746659434027,-250.44102582,0.00019799,2]
[360246730,1746659434038,-450.0,0.00019799,2]
[360246731,1746659434049,-210.13271808,0.00019799,2]
[360246732,1746659434059,-208.79852035,0.00019799,2]
[360246733,1746659434069,-256.2815661,0.00019799,2]
[360246734,1746659434080,-218.37485654,0.00019799,2]
[360246735,1746659434090,-500.0,0.00019799,2]
[360246736,1746659434101,-562.10786544,0.00019799,2]
[360246737,1746659434113,-500.0,0.00019799,2]
[360246738,1746659434124,-500.0,0.00019799,2]
[360246739,1746659434135,-203.78498781,0.00019799,2]
[360246740,1746659434145,-500.0,0.00019799,2]
[360246741,1746659434156,-500.0,0.00019799,2]
[360246742,1746659434166,-500.0,0.00019799,2]
[360246743,1746659434177,-450.0,0.00019799,2]
[360246744,1746659434187,-255.58880399,0.00019799,2]
[360246745,1746659434197,-450.0,0.00019799,2]
[360246746,1746659434207,-450.0,0.00019799,2]
[360246747,1746659434218,-450.0,0.00019799,2]
[360246748,1746659434229,-450.0,0.00019799,2]
[360246749,1746659434239,-450.0,0.00019799,2]
[360246750,1746659434250,-150.0,0.00019799,2]
[360246751,1746659434260,-450.0,0.00019799,2]
[360246752,1746659434270,-343.13459588,0.00019799,2]
[360246753,1746659434281,-450.0,0.00019799,2]
[360246754,1746659434291,-450.0,0.00019799,2]
[360246755,1746659434301,-450.0,0.00019799,2]
[360246756,1746659434312,-450.0,0.00019799,2]
[360246757,1746659434323,-182.65158867,0.00019799,2]
[360246758,1746659434333,-450.0,0.00019799,2]
[360246759,1746659434343,-450.0,0.00019799,2]
[360246760,1746659434353,-450.0,0.00019799,2]
[360246761,1746659434363,-450.0,0.00019799,2]
[360246762,1746659434373,-450.0,0.00019799,2]
[360246763,1746659434384,-450.0,0.00019799,2]
[360246764,1746659434399,-450.0,0.00019799,2]
[360246765,1746659434409,-470.0,0.00019799,2]
[360246766,1746659434419,-450.0,0.00019799,2]
[360246767,1746659434430,-450.0,0.00019799,2]
[360246768,1746659434439,-450.0,0.00019799,2]
[360246769,1746659434450,-450.0,0.00019799,2]
[360246770,1746659434460,-450.0,0.00019799,2]
[360246771,1746659434470,-450.0,0.00019799,2]
[360246772,1746659434480,-528.13725118,0.00019799,2]
[360246773,1746659434490,-450.0,0.00019799,2]
[360246774,1746659434500,-450.0,0.00019799,2]
[360246775,1746659434509,-450.0,0.00019799,2]
[360246776,1746659434519,-450.0,0.00019799,2]
[360246777,1746659434530,-450.0,0.00019799,2]
[360246778,1746659434539,-450.0,0.00019799,2]
[360246779,1746659434549,-450.0,0.00019799,2]
[360246780,1746659434559,-450.0,0.00019799,2]
[360246781,1746659434570,-450.0,0.00019799,2]
[360246782,1746659434580,-450.0,0.00019799,2]
[360246783,1746659434591,-450.0,0.00019799,2]
[360246784,1746659434601,-450.0,0.00019799,2]
[360246785,1746659434611,-450.0,0.00019799,2]
[360246786,1746659434621,-450.0,0.00019799,2]
[360246787,1746659434631,-392.34791614,0.00019799,2]
[360246788,1746659434642,-464.71,0.00019799,2]
[360246789,1746659434651,-450.0,0.00019799,2]
[360246790,1746659434662,-450.0,0.00019799,2]
[360246791,1746659434672,-507.62190035,0.00019799,2]
[360246792,1746659434682,-450.0,0.00019799,2]
[360246793,1746659434692,-450.0,0.00019799,2]
[360246794,1746659434702,-450.0,0.00019799,2]
[360246795,1746659434714,-450.0,0.00019799,2]
[360246796,1746659434725,-450.0,0.00019799,2]
[360246797,1746659434735,-222.41338905,0.00019799,2]
[360246798,1746659434744,-450.0,0.00019799,2]
[360246799,1746659434755,-450.0,0.00019799,2]
[360246800,1746659434764,-308.84,0.00019799,2]
[360246801,1746659434775,-450.0,0.00019799,2]
[360246802,1746659434784,-450.0,0.00019799,2]
[360246803,1746659434795,-450.0,0.00019799,2]
[360246804,1746659434805,-450.0,0.00019799,2]
[360246805,1746659434814,-436.7677651,0.00019799,2]
[360246806,1746659434824,-450.0,0.00019799,2]
[360246807,1746659434834,-450.0,0.00019799,2]
[360246808,1746659434844,-450.0,0.00019799,2]
[360246809,1746659434854,-450.0,0.00019799,2]
[360246810,1746659434864,-450.0,0.00019799,2]
[360246811,1746659434874,-500.0,0.00019799,2]
[360246812,1746659434884,-285.0,0.00019799,2]
[360246813,1746659434894,-314.45110083,0.00019799,2]
[360246814,1746659434904,-450.0,0.00019799,2]
[360246815,1746659434914,-450.0,0.00019799,2]
[360246816,1746659434924,-450.0,0.00019799,2]
[360246817,1746659434934,-450.0,0.00019799,2]
[360246818,1746659434946,-450.0,0.00019799,2]
[360246819,1746659434956,-450.0,0.00019799,2]
[360246820,1746659434966,-450.0,0.00019799,2]
[360246821,1746659434975,-546.94,0.00019799,2]
[360246822,1746659434985,-450.0,0.00019799,2]
[360246823,1746659434996,-450.0,0.00019799,2]
[360246824,1746659435005,-450.0,0.00019799,2]
[360246825,1746659435016,-450.0,0.00019799,2]
[360246826,1746659435026,-450.0,0.00019799,2]
[360246827,1746659435036,-2000.0,0.00019799,2]
[360246828,1746659435046,-450.0,0.00019799,2]
[360246829,1746659435056,-450.0,0.00019799,2]
[360246830,1746659435066,-473.783571,0.00019799,2]
[360246831,1746659435075,-502.93664547,0.00019799,2]
[360246832,1746659435085,-535.53426083,0.00019799,2]
[360246833,1746659435095,-450.0,0.00019799,2]
[360246834,1746659435105,-450.0,0.00019799,2]
[360246835,1746659435115,-450.0,0.00019799,2]
[360246836,1746659435125,-450.0,0.00019799,2]
[360246837,1746659435136,-209.59207269,0.00019799,2]
[360246838,1746659435146,-490.0,0.00019799,2]
[360246839,1746659435156,-450.0,0.00019799,2]
[360246840,1746659435165,-450.0,0.00019799,2]
[360246841,1746659435176,-450.0,0.00019799,2]
[360246842,1746659435186,-450.0,0.00019799,2]
[360246843,1746659435196,-450.0,0.00019799,2]
[360246844,1746659435206,-450.0,0.00019799,2]
[360246845,1746659435216,-450.0,0.00019799,2]
[360246846,1746659435226,-450.0,0.00019799,2]
[360246847,1746659435236,-450.0,0.00019799,2]
[360246848,1746659435247,-497.11,0.00019799,2]
[360246849,1746659435257,-500.0,0.00019799,2]
[360246850,1746659435266,-500.0,0.00019799,2]
[360246851,1746659435276,-399.26607333,0.00019799,2]
[360246852,1746659435286,-450.0,0.00019799,2]
[360246853,1746659435296,-500.0,0.00019799,2]
[360246854,1746659435306,-1072.24,0.00019799,2]
[360246855,1746659435317,-1072.24,0.00019799,2]
[360246856,1746659435327,-1072.24,0.00019799,2]
[360246857,1746659435336,-1072.24,0.00019799,2]
[360246858,1746659435347,-450.0,0.00019799,2]
[360246859,1746659435356,-450.0,0.00019799,2]
[360246860,1746659435367,-450.0,0.00019799,2]
[360246861,1746659435376,-1072.24,0.00019799,2]
[360246862,1746659435386,-450.0,0.00019799,2]
[360246863,1746659435396,-450.0,0.00019799,2]
[360246864,1746659435406,-513.39340979,0.00019799,2]
[360246865,1746659435416,-450.0,0.00019799,2]
[360246866,1746659435427,-450.0,0.00019799,2]
[360246867,1746659435436,-601.31,0.00019799,2]
[360246868,1746659435446,-601.31,0.00019799,2]
[360246869,1746659435456,-601.31,0.00019799,2]
[360246870,1746659435466,-601.31,0.00019799,2]
[360246871,1746659435476,-450.0,0.00019799,2]
[360246872,1746659435486,-601.31,0.00019799,2]
[360246873,1746659435496,-450.0,0.00019799,2]
[360246874,1746659435506,-428.02297651,0.00019799,2]
[360246875,1746659435516,-450.0,0.00019799,2]
[360246876,1746659435526,-450.0,0.00019799,2]
[360246877,1746659435536,-450.0,0.00019799,2]
[360246878,1746659435546,-450.0,0.00019799,2]
[360246879,1746659435556,-450.0,0.00019799,2]
[360246880,1746659435566,-450.0,0.00019799,2]
[360246881,1746659435576,-450.0,0.00019799,2]
[360246882,1746659435586,-566.46460601,0.00019799,2]
[360246883,1746659435596,-450.0,0.00019799,2]
[360246884,1746659435606,-450.0,0.00019799,2]
[360246885,1746659435616,-470.0,0.00019799,2]
[360246886,1746659435627,-546.68,0.00019799,2]
[360246887,1746659435637,-546.68,0.00019799,2]
[360246888,1746659435843,-546.68,0.00019799,2]
[360246889,1746659435879,-546.68,0.00019799,2]
[360246890,1746659435891,-546.68,0.00019799,2]
[360246891,1746659435902,-450.0,0.00019799,2]
[360246892,1746659435912,-450.0,0.00019799,2]
[360246893,1746659435923,-450.0,0.00019799,2]
[360246894,1746659435933,-450.0,0.00019799,2]
[360246895,1746659435943,-487.02613575,0.00019799,2]
[360246896,1746659435956,-450.0,0.00019799,2]
[360246897,1746659435966,-450.0,0.00019799,2]
[360246898,1746659435976,-450.0,0.00019799,2]
[360246899,1746659435987,-450.0,0.00019799,2]
[360246900,1746659435997,-450.0,0.00019799,2]
[360246901,1746659436007,-450.0,0.00019799,2]
[360246902,1746659436016,-450.0,0.00019799,2]
[360246903,1746659436028,-500.0,0.00019799,2]
[360246904,1746659436037,-18269.18,0.00019799,2]
[360246905,1746659436047,-18269.18,0.00019799,2]
[360246906,1746659436056,-18269.18,0.00019799,2]
[360246907,1746659436066,-450.0,0.00019799,2]
[360246908,1746659436075,-18269.18,0.00019799,2]
[360246909,1746659436086,-450.0,0.00019799,2]
[360246910,1746659436096,-450.0,0.00019799,2]